[Event "Titled Tuesday Blitz July 6 2021"]
[White "Torkkola, Henri"]
[Black "Flores Quillas, Diego Saul Rodri"]
[WhiteFideId "507660"]
[BlackFideId "3822508"]
[WhiteElo "2137"]
[BlackElo "2071"]
[Result "0-1"]
[Round "06"]
[TimeControl "180+1"]
[Date "2021.07.06"]
[WhiteClock "0:00:02"]
[BlackClock "0:00:11"]

1. d4 {[%clk 0:03:00]}  Nf6 {[%clk 0:02:56]} 2. Bf4 {[%clk 0:03:01]}  c5 {[%clk 0:02:48]} 3. e3 {[%clk 0:03:00]}  d5 {[%clk 0:02:46]} 4. Nf3 {[%clk 0:02:59]}  Nc6 {[%clk 0:02:46]} 5. Nbd2 {[%clk 0:02:59]}  Bf5 {[%clk 0:02:42]} 6. dxc5 {[%clk 0:02:59]}  e6 {[%clk 0:02:42]} 7. Nd4 {[%clk 0:02:59]}  Bg6 {[%clk 0:02:31]} 8. Bb5 {[%clk 0:02:59]}  Rc8 {[%clk 0:02:31]} 9. b4 {[%clk 0:02:59]}  Be7 {[%clk 0:02:26]} 10. O-O {[%clk 0:02:57]}  O-O {[%clk 0:02:18]} 11. Nxc6 {[%clk 0:02:55]}  bxc6 {[%clk 0:02:19]} 12. Ba6 {[%clk 0:02:56]}  Rb8 {[%clk 0:02:20]} 13. Bxb8 {[%clk 0:02:55]}  Qxb8 {[%clk 0:02:21]} 14. c3 {[%clk 0:02:51]}  Nd7 {[%clk 0:02:19]} 15. Nb3 {[%clk 0:02:43]}  Qc7 {[%clk 0:02:18]} 16. Bd3 {[%clk 0:02:41]}  f5 {[%clk 0:02:17]} 17. a4 {[%clk 0:02:35]}  e5 {[%clk 0:02:16]} 18. f4 {[%clk 0:02:24]}  Bf6 {[%clk 0:02:14]} 19. Qd2 {[%clk 0:02:20]}  Re8 {[%clk 0:02:08]} 20. Rae1 {[%clk 0:01:59]}  h5 {[%clk 0:02:00]} 21. Qc2 {[%clk 0:01:58]}  exf4 {[%clk 0:01:57]} 22. exf4 {[%clk 0:01:38]}  Rxe1 {[%clk 0:01:55]} 23. Rxe1 {[%clk 0:01:39]}  Qxf4 {[%clk 0:01:55]} 24. g3 {[%clk 0:01:14]}  Qg5 {[%clk 0:01:38]} 25. Nd4 {[%clk 0:01:07]}  Ne5 {[%clk 0:01:32]} 26. b5 {[%clk 0:00:54]}  cxb5 {[%clk 0:01:32]} 27. axb5 {[%clk 0:00:54]}  h4 {[%clk 0:01:28]} 28. Kg2 {[%clk 0:00:45]}  hxg3 {[%clk 0:01:24]} 29. hxg3 {[%clk 0:00:23]}  Nxd3 {[%clk 0:00:35]} 30. Qxd3 {[%clk 0:00:23]}  f4 {[%clk 0:00:35]} 31. Qf3 {[%clk 0:00:15]}  Be4 {[%clk 0:00:36]} 32. Rxe4 {[%clk 0:00:15]}  dxe4 {[%clk 0:00:37]} 33. Qxe4 {[%clk 0:00:15]}  Qxc5 {[%clk 0:00:36]} 34. gxf4 {[%clk 0:00:14]}  Qxc3 {[%clk 0:00:35]} 35. Qd5+ {[%clk 0:00:11]}  Kf8 {[%clk 0:00:22]} 36. Ne6+ {[%clk 0:00:10]}  Ke7 {[%clk 0:00:22]} 37. f5 {[%clk 0:00:07]}  Qb2+ {[%clk 0:00:20]} 38. Kf1 {[%clk 0:00:05]}  Qa1+ {[%clk 0:00:19]} 39. Kg2 {[%clk 0:00:05]}  Qb2+ {[%clk 0:00:19]} 40. Kf1 {[%clk 0:00:05]}  Kf7 {[%clk 0:00:14]} 41. Qb7+ {[%clk 0:00:05]}  Be7 {[%clk 0:00:13]} 42. Qd5 {[%clk 0:00:04]}  Kf6 {[%clk 0:00:11]} 43. Nc7 {[%clk 0:00:02]}  Qb1+ {[%clk 0:00:11]} 44. Kg2 {[%clk 0:00:01]}  Qxf5 {[%clk 0:00:11]} 45. Qxf5+ {[%clk 0:00:02]}  Kxf5 {[%clk 0:00:11]} 46. Kf3 {[%clk 0:00:03]}  Bc5 {[%clk 0:00:11]} 47. Nd5 {[%clk 0:00:02]}  g5 {[%clk 0:00:11]} 48. Nc3 {[%clk 0:00:02]}  g4+ {[%clk 0:00:12]} 49. Kg2 {[%clk 0:00:02]}  Kf4 {[%clk 0:00:11]} 50. Na4 {[%clk 0:00:03]}  Bd4 {[%clk 0:00:11]} 51. Kf1 {[%clk 0:00:01]}  Kf3 {[%clk 0:00:10]} 52. Ke1 {[%clk 0:00:01]}  g3 {[%clk 0:00:10]} 53. Kd2 {[%clk 0:00:01]}  g2 {[%clk 0:00:11]} 54. Kd3 {[%clk 0:00:02]}  g1=Q {[%clk 0:00:11]} 0-1


[Site "https://www.chess.com"]

[Event "Titled Tuesday Blitz July 6 2021"]
[White "Tristan, Leonardo"]
[Black "Michailov, Matias"]
[WhiteFideId "113816"]
[BlackFideId "3001571"]
[WhiteElo "2404"]
[BlackElo "2231"]
[Result "1-0"]
[Round "06"]
[TimeControl "180+1"]
[Date "2021.07.06"]
[WhiteClock "0:00:23"]
[BlackClock "0:00:02"]

1. d4 {[%clk 0:03:00]}  Nf6 {[%clk 0:02:55]} 2. Bg5 {[%clk 0:03:00]}  Ne4 {[%clk 0:02:52]} 3. Bf4 {[%clk 0:03:00]}  d5 {[%clk 0:02:50]} 4. e3 {[%clk 0:03:01]}  Bf5 {[%clk 0:02:48]} 5. f3 {[%clk 0:02:37]}  Nf6 {[%clk 0:02:47]} 6. g4 {[%clk 0:02:36]}  Bg6 {[%clk 0:02:47]} 7. h4 {[%clk 0:02:34]}  h5 {[%clk 0:02:47]} 8. g5 {[%clk 0:02:35]}  Nfd7 {[%clk 0:02:46]} 9. Bd3 {[%clk 0:02:35]}  e6 {[%clk 0:02:45]} 10. Bxg6 {[%clk 0:02:32]}  fxg6 {[%clk 0:02:45]} 11. c4 {[%clk 0:02:31]}  c6 {[%clk 0:02:24]} 12. Nc3 {[%clk 0:02:29]}  Be7 {[%clk 0:02:21]} 13. Qc2 {[%clk 0:02:29]}  Kf7 {[%clk 0:02:21]} 14. e4 {[%clk 0:02:27]}  Nb6 {[%clk 0:02:15]} 15. c5 {[%clk 0:02:22]}  N6d7 {[%clk 0:01:53]} 16. Nge2 {[%clk 0:02:21]}  Na6 {[%clk 0:01:50]} 17. Bg3 {[%clk 0:02:11]}  Re8 {[%clk 0:01:44]} 18. O-O-O {[%clk 0:01:49]}  b6 {[%clk 0:01:33]} 19. Nf4 {[%clk 0:01:48]}  Nf8 {[%clk 0:01:33]} 20. exd5 {[%clk 0:01:31]}  exd5 {[%clk 0:01:28]} 21. Nxg6 {[%clk 0:01:13]}  Nxg6 {[%clk 0:01:13]} 22. Qf5+ {[%clk 0:01:13]}  Bf6 {[%clk 0:01:04]} 23. gxf6 {[%clk 0:01:14]}  Qxf6 {[%clk 0:01:04]} 24. Qxh5 {[%clk 0:01:14]}  bxc5 {[%clk 0:00:41]} 25. Be5 {[%clk 0:01:14]}  Rxe5 {[%clk 0:00:41]} 26. dxe5 {[%clk 0:01:14]}  Qxe5 {[%clk 0:00:42]} 27. Qg4 {[%clk 0:01:13]}  Qf4+ {[%clk 0:00:38]} 28. Kb1 {[%clk 0:01:12]}  Qxg4 {[%clk 0:00:27]} 29. fxg4 {[%clk 0:01:13]}  c4 {[%clk 0:00:28]} 30. Rdf1+ {[%clk 0:01:05]}  Kg8 {[%clk 0:00:27]} 31. Ne2 {[%clk 0:00:50]}  Nc5 {[%clk 0:00:26]} 32. Nd4 {[%clk 0:00:50]}  Rc8 {[%clk 0:00:22]} 33. g5 {[%clk 0:00:49]}  Ne4 {[%clk 0:00:20]} 34. Kc2 {[%clk 0:00:46]}  Ne5 {[%clk 0:00:18]} 35. Nf5 {[%clk 0:00:44]}  Rb8 {[%clk 0:00:15]} 36. h5 {[%clk 0:00:42]}  Nd3 {[%clk 0:00:10]} 37. b3 {[%clk 0:00:36]}  Nb4+ {[%clk 0:00:10]} 38. Kd1 {[%clk 0:00:30]}  c3 {[%clk 0:00:08]} 39. h6 {[%clk 0:00:28]}  gxh6 {[%clk 0:00:05]} 40. Ne7+ {[%clk 0:00:23]}  Kg7 {[%clk 0:00:02]} 41. gxh6+ {[%clk 0:00:23]}  Kh7 {[%clk 0:00:02]} 42. Rf7+ {[%clk 0:00:23]} 1-0


[Site "https://www.chess.com"]

[Event "Titled Tuesday Blitz July 6 2021"]
[White "Viana Da Costa, Fernando"]
[Black "Obolentseva, Alexandra"]
[WhiteFideId "2111900"]
[BlackFideId "24153648"]
[WhiteElo "2247"]
[BlackElo "2113"]
[Result "1/2-1/2"]
[Round "06"]
[TimeControl "180+1"]
[Date "2021.07.06"]
[WhiteClock "0:01:12"]
[BlackClock "0:00:34"]

1. e4 {[%clk 0:03:00]}  c5 {[%clk 0:02:58]} 2. Nf3 {[%clk 0:03:01]}  d6 {[%clk 0:02:58]} 3. d4 {[%clk 0:03:00]}  cxd4 {[%clk 0:02:59]} 4. Nxd4 {[%clk 0:03:00]}  Nf6 {[%clk 0:02:58]} 5. Nc3 {[%clk 0:03:01]}  a6 {[%clk 0:02:58]} 6. Bg5 {[%clk 0:03:01]}  e6 {[%clk 0:02:57]} 7. f4 {[%clk 0:03:01]}  Nc6 {[%clk 0:02:57]} 8. Qd2 {[%clk 0:02:52]}  Qb6 {[%clk 0:02:55]} 9. O-O-O {[%clk 0:02:50]}  Nxd4 {[%clk 0:02:52]} 10. Qxd4 {[%clk 0:02:51]}  Qxd4 {[%clk 0:02:52]} 11. Rxd4 {[%clk 0:02:52]}  Be7 {[%clk 0:02:50]} 12. Be2 {[%clk 0:02:47]}  e5 {[%clk 0:02:35]} 13. Rdd1 {[%clk 0:02:42]}  Be6 {[%clk 0:02:29]} 14. Bxf6 {[%clk 0:02:40]}  Bxf6 {[%clk 0:02:30]} 15. f5 {[%clk 0:02:41]}  Bd7 {[%clk 0:02:28]} 16. Nd5 {[%clk 0:02:41]}  Bd8 {[%clk 0:02:23]} 17. Kb1 {[%clk 0:02:40]}  Bc6 {[%clk 0:02:22]} 18. Bc4 {[%clk 0:02:37]}  b5 {[%clk 0:02:19]} 19. Bb3 {[%clk 0:02:36]}  a5 {[%clk 0:02:17]} 20. a3 {[%clk 0:02:35]}  O-O {[%clk 0:02:11]} 21. Rhe1 {[%clk 0:02:25]}  Re8 {[%clk 0:02:05]} 22. c3 {[%clk 0:02:24]}  Kf8 {[%clk 0:02:03]} 23. Rd3 {[%clk 0:02:23]}  Bxd5 {[%clk 0:02:00]} 24. Rxd5 {[%clk 0:02:19]}  Bc7 {[%clk 0:01:56]} 25. Rxb5 {[%clk 0:02:18]}  Reb8 {[%clk 0:01:53]} 26. Rxb8+ {[%clk 0:02:15]}  Rxb8 {[%clk 0:01:53]} 27. Kc2 {[%clk 0:02:16]}  f6 {[%clk 0:01:50]} 28. Bd5 {[%clk 0:02:11]}  Bb6 {[%clk 0:01:50]} 29. b4 {[%clk 0:02:09]}  Rc8 {[%clk 0:01:46]} 30. Kb3 {[%clk 0:01:54]}  Ke7 {[%clk 0:01:42]} 31. Rc1 {[%clk 0:01:45]}  Rb8 {[%clk 0:01:39]} 32. Ka4 {[%clk 0:01:42]}  axb4 {[%clk 0:01:17]} 33. axb4 {[%clk 0:01:43]}  Kd7 {[%clk 0:01:12]} 34. Rc2 {[%clk 0:01:42]}  Kc7 {[%clk 0:01:11]} 35. Ra2 {[%clk 0:01:40]}  Be3 {[%clk 0:01:07]} 36. Kb3 {[%clk 0:01:38]}  Bb6 {[%clk 0:01:06]} 37. Ra6 {[%clk 0:01:35]}  Bg1 {[%clk 0:01:05]} 38. h3 {[%clk 0:01:33]}  Be3 {[%clk 0:01:02]} 39. Rc6+ {[%clk 0:01:33]}  Kd7 {[%clk 0:01:02]} 40. Kc4 {[%clk 0:01:31]}  Rb6 {[%clk 0:00:59]} 41. Rxb6 {[%clk 0:01:29]}  Bxb6 {[%clk 0:01:00]} 42. Kb5 {[%clk 0:01:29]}  Kc7 {[%clk 0:01:00]} 43. c4 {[%clk 0:01:27]}  Bf2 {[%clk 0:00:59]} 44. c5 {[%clk 0:01:22]}  dxc5 {[%clk 0:01:00]} 45. bxc5 {[%clk 0:01:22]}  Be3 {[%clk 0:00:54]} 46. Bg8 {[%clk 0:01:22]}  h6 {[%clk 0:00:52]} 47. Bd5 {[%clk 0:01:23]}  Bd4 {[%clk 0:00:50]} 48. c6 {[%clk 0:01:23]}  Kd6 {[%clk 0:00:49]} 49. Kc4 {[%clk 0:01:23]}  Bg1 {[%clk 0:00:48]} 50. Kd3 {[%clk 0:01:20]}  Bb6 {[%clk 0:00:40]} 51. Ke2 {[%clk 0:01:21]}  Ke7 {[%clk 0:00:39]} 52. Kf3 {[%clk 0:01:21]}  Bc7 {[%clk 0:00:39]} 53. Kg4 {[%clk 0:01:22]}  Bb6 {[%clk 0:00:38]} 54. Kh5 {[%clk 0:01:22]}  Bc7 {[%clk 0:00:38]} 55. Kg6 {[%clk 0:01:22]}  Kf8 {[%clk 0:00:39]} 56. Kh7 {[%clk 0:01:23]}  Bb6 {[%clk 0:00:39]} 57. Be6 {[%clk 0:01:23]}  Bc7 {[%clk 0:00:39]} 58. Kg6 {[%clk 0:01:21]}  Bb6 {[%clk 0:00:39]} 59. Kh5 {[%clk 0:01:20]}  Ke7 {[%clk 0:00:39]} 60. Kg4 {[%clk 0:01:19]}  Bc7 {[%clk 0:00:38]} 61. Kf3 {[%clk 0:01:19]}  Kd6 {[%clk 0:00:38]} 62. Bd5 {[%clk 0:01:17]}  Bb6 {[%clk 0:00:38]} 63. Ke2 {[%clk 0:01:17]}  Ke7 {[%clk 0:00:37]} 64. Kd3 {[%clk 0:01:17]}  Kd6 {[%clk 0:00:38]} 65. Kc4 {[%clk 0:01:18]}  Bf2 {[%clk 0:00:37]} 66. Kb5 {[%clk 0:01:17]}  Be3 {[%clk 0:00:36]} 67. Ka6 {[%clk 0:01:18]}  Kc7 {[%clk 0:00:36]} 68. Kb5 {[%clk 0:01:17]}  Kd6 {[%clk 0:00:35]} 69. Kc4 {[%clk 0:01:14]}  Bg1 {[%clk 0:00:34]} 70. Kd3 {[%clk 0:01:12]}  Bb6 {[%clk 0:00:34]} 1/2-1/2


[Site "https://www.chess.com"]

[Event "Titled Tuesday Blitz July 6 2021"]
[White "Vivas Zamora, Fabian Ernesto"]
[Black "Sanchez Alvares, Kelvin Antonio"]
[WhiteFideId "3902480"]
[BlackFideId "3906680"]
[WhiteElo "1966"]
[BlackElo "2247"]
[Result "0-1"]
[Round "06"]
[TimeControl "180+1"]
[Date "2021.07.06"]
[WhiteClock "0:00:02"]
[BlackClock "0:00:05"]

1. c4 {[%clk 0:03:00]}  c5 {[%clk 0:02:58]} 2. Nf3 {[%clk 0:02:59]}  Nf6 {[%clk 0:02:56]} 3. Nc3 {[%clk 0:02:58]}  g6 {[%clk 0:02:56]} 4. d4 {[%clk 0:02:55]}  Bg7 {[%clk 0:02:56]} 5. d5 {[%clk 0:02:47]}  O-O {[%clk 0:02:56]} 6. e4 {[%clk 0:02:47]}  d6 {[%clk 0:02:56]} 7. Bd3 {[%clk 0:02:44]}  Bg4 {[%clk 0:02:55]} 8. h3 {[%clk 0:02:37]}  Bxf3 {[%clk 0:02:55]} 9. Qxf3 {[%clk 0:02:38]}  Na6 {[%clk 0:02:48]} 10. O-O {[%clk 0:02:35]}  Nc7 {[%clk 0:02:47]} 11. Re1 {[%clk 0:02:29]}  Nd7 {[%clk 0:02:46]} 12. Qg3 {[%clk 0:02:22]}  a6 {[%clk 0:02:45]} 13. a4 {[%clk 0:02:19]}  Rb8 {[%clk 0:02:38]} 14. a5 {[%clk 0:02:15]}  b5 {[%clk 0:02:36]} 15. axb6 {[%clk 0:02:12]}  Rxb6 {[%clk 0:02:36]} 16. Bc2 {[%clk 0:01:48]}  e6 {[%clk 0:02:21]} 17. Na4 {[%clk 0:01:45]}  Rb4 {[%clk 0:02:19]} 18. Bd2 {[%clk 0:01:09]}  Rxc4 {[%clk 0:02:10]} 19. Bd3 {[%clk 0:01:08]}  Rd4 {[%clk 0:01:54]} 20. Bc3 {[%clk 0:01:08]}  Be5 {[%clk 0:01:45]} 21. Qf3 {[%clk 0:00:52]}  exd5 {[%clk 0:01:37]} 22. Bxd4 {[%clk 0:00:50]}  Bxd4 {[%clk 0:01:36]} 23. exd5 {[%clk 0:00:49]}  Ne5 {[%clk 0:01:35]} 24. Qe4 {[%clk 0:00:43]}  f5 {[%clk 0:01:32]} 25. Qe2 {[%clk 0:00:43]}  f4 {[%clk 0:01:18]} 26. Be4 {[%clk 0:00:36]}  f3 {[%clk 0:01:08]} 27. Bxf3 {[%clk 0:00:32]}  Nxf3+ {[%clk 0:00:58]} 28. gxf3 {[%clk 0:00:32]}  Qg5+ {[%clk 0:00:56]} 29. Kf1 {[%clk 0:00:25]}  Qxd5 {[%clk 0:00:46]} 30. Qe4 {[%clk 0:00:18]}  Qc4+ {[%clk 0:00:40]} 31. Kg2 {[%clk 0:00:16]}  Qf7 {[%clk 0:00:26]} 32. Nb6 {[%clk 0:00:12]}  Kg7 {[%clk 0:00:23]} 33. Qe7 {[%clk 0:00:06]}  Bxb2 {[%clk 0:00:14]} 34. Rab1 {[%clk 0:00:05]}  Bd4 {[%clk 0:00:14]} 35. Nc4 {[%clk 0:00:05]}  Nb5 {[%clk 0:00:11]} 36. Qxf7+ {[%clk 0:00:02]}  Rxf7 {[%clk 0:00:12]} 37. Re6 {[%clk 0:00:02]}  d5 {[%clk 0:00:11]} 38. Nd6 {[%clk 0:00:02]}  Nc7 {[%clk 0:00:08]} 39. Nxf7 {[%clk 0:00:01]}  Nxe6 {[%clk 0:00:08]} 40. Nd6 {[%clk 0:00:01]}  a5 {[%clk 0:00:07]} 41. Rb7+ {[%clk 0:00:02]}  Kf6 {[%clk 0:00:06]} 42. f4 {[%clk 0:00:02]}  Nd8 {[%clk 0:00:05]} 0-1


[Site "https://www.chess.com"]

[Event "Titled Tuesday Blitz July 6 2021"]
[White "Vogel, Roven"]
[Black "Chernomordik, Pavel"]
[WhiteFideId "12908088"]
[BlackFideId "2804530"]
[WhiteElo "2516"]
[BlackElo "2273"]
[Result "1-0"]
[Round "06"]
[TimeControl "180+1"]
[Date "2021.07.06"]
[WhiteClock "0:01:43"]
[BlackClock "0:00:32"]

1. e4 {[%clk 0:03:00]}  g6 {[%clk 0:02:59]} 2. d4 {[%clk 0:03:00]}  Bg7 {[%clk 0:02:59]} 3. Nf3 {[%clk 0:03:00]}  d6 {[%clk 0:02:59]} 4. h3 {[%clk 0:02:53]}  Nf6 {[%clk 0:02:58]} 5. Nc3 {[%clk 0:02:53]}  O-O {[%clk 0:02:57]} 6. Be2 {[%clk 0:02:53]}  a6 {[%clk 0:02:53]} 7. a4 {[%clk 0:02:52]}  b6 {[%clk 0:02:49]} 8. O-O {[%clk 0:02:51]}  Bb7 {[%clk 0:02:48]} 9. e5 {[%clk 0:02:42]}  Nfd7 {[%clk 0:02:48]} 10. e6 {[%clk 0:02:36]}  fxe6 {[%clk 0:02:44]} 11. Ng5 {[%clk 0:02:36]}  Rf6 {[%clk 0:02:41]} 12. Nce4 {[%clk 0:02:32]}  Bxe4 {[%clk 0:02:34]} 13. Nxe4 {[%clk 0:02:33]}  Rf5 {[%clk 0:02:24]} 14. Ng5 {[%clk 0:02:31]}  Nf8 {[%clk 0:02:21]} 15. Bg4 {[%clk 0:02:27]}  Rf6 {[%clk 0:02:18]} 16. Re1 {[%clk 0:02:20]}  Nbd7 {[%clk 0:01:59]} 17. Bxe6+ {[%clk 0:02:13]}  Nxe6 {[%clk 0:01:56]} 18. Nxe6 {[%clk 0:02:14]}  Qc8 {[%clk 0:01:47]} 19. Nxg7 {[%clk 0:02:14]}  Kxg7 {[%clk 0:01:47]} 20. Rxe7+ {[%clk 0:02:14]}  Kg8 {[%clk 0:01:40]} 21. Qe2 {[%clk 0:01:55]}  Nf8 {[%clk 0:01:33]} 22. Qc4+ {[%clk 0:01:53]}  Kh8 {[%clk 0:01:25]} 23. Bh6 {[%clk 0:01:49]}  Ne6 {[%clk 0:00:47]} 24. d5 {[%clk 0:01:48]}  b5 {[%clk 0:00:32]} 25. Qc3 {[%clk 0:01:43]} 1-0


[Site "https://www.chess.com"]

[Event "Titled Tuesday Blitz July 6 2021"]
[White "Vovk, Orest"]
[Black "Hebden, Mark L"]
[WhiteFideId "14113490"]
[BlackFideId "400084"]
[WhiteElo "2203"]
[BlackElo "2457"]
[Result "1-0"]
[Round "06"]
[TimeControl "180+1"]
[Date "2021.07.06"]
[WhiteClock "0:00:04"]
[BlackClock "0:00:08"]

1. g4 {[%clk 0:02:52]}  d5 {[%clk 0:02:58]} 2. h3 {[%clk 0:02:51]}  e5 {[%clk 0:02:57]} 3. Bg2 {[%clk 0:02:51]}  c6 {[%clk 0:02:57]} 4. d4 {[%clk 0:02:48]}  Nd7 {[%clk 0:02:56]} 5. c4 {[%clk 0:02:48]}  dxc4 {[%clk 0:02:55]} 6. Nf3 {[%clk 0:02:47]}  exd4 {[%clk 0:02:46]} 7. Qxd4 {[%clk 0:02:46]}  Ngf6 {[%clk 0:02:45]} 8. O-O {[%clk 0:02:45]}  h5 {[%clk 0:02:34]} 9. g5 {[%clk 0:02:41]}  Nd5 {[%clk 0:02:34]} 10. e4 {[%clk 0:02:36]}  N5b6 {[%clk 0:02:32]} 11. g6 {[%clk 0:02:24]}  fxg6 {[%clk 0:02:25]} 12. Bg5 {[%clk 0:02:22]}  Qc7 {[%clk 0:02:04]} 13. Nh4 {[%clk 0:02:13]}  Qe5 {[%clk 0:01:58]} 14. Qxe5+ {[%clk 0:02:09]}  Nxe5 {[%clk 0:01:57]} 15. f4 {[%clk 0:02:09]}  Nf7 {[%clk 0:01:56]} 16. Nxg6 {[%clk 0:02:09]}  Nxg5 {[%clk 0:01:55]} 17. Nxh8 {[%clk 0:01:44]}  Bc5+ {[%clk 0:01:50]} 18. Kh2 {[%clk 0:01:40]}  Ne6 {[%clk 0:01:49]} 19. Ng6 {[%clk 0:01:30]}  Na4 {[%clk 0:01:46]} 20. Nd2 {[%clk 0:00:53]}  Nxb2 {[%clk 0:01:45]} 21. f5 {[%clk 0:00:32]}  Nf8 {[%clk 0:01:37]} 22. e5 {[%clk 0:00:27]}  Bd4 {[%clk 0:01:29]} 23. Nf3 {[%clk 0:00:22]}  Bb6 {[%clk 0:01:23]} 24. Nxf8 {[%clk 0:00:19]}  Kxf8 {[%clk 0:01:22]} 25. f6 {[%clk 0:00:19]}  gxf6 {[%clk 0:01:17]} 26. exf6 {[%clk 0:00:20]}  Nd3 {[%clk 0:01:09]} 27. Ng5 {[%clk 0:00:18]}  Bd7 {[%clk 0:01:04]} 28. Nh7+ {[%clk 0:00:15]}  Kf7 {[%clk 0:01:03]} 29. Ng5+ {[%clk 0:00:14]}  Kg6 {[%clk 0:01:01]} 30. h4 {[%clk 0:00:12]}  Bc7+ {[%clk 0:00:56]} 31. Kh1 {[%clk 0:00:11]}  Nf4 {[%clk 0:00:56]} 32. Be4+ {[%clk 0:00:11]}  Kxf6 {[%clk 0:00:55]} 33. Rad1 {[%clk 0:00:08]}  Bg4 {[%clk 0:00:53]} 34. Bf3 {[%clk 0:00:07]}  Kf5 {[%clk 0:00:41]} 35. Bxg4+ {[%clk 0:00:07]}  Kxg4 {[%clk 0:00:40]} 36. Rd7 {[%clk 0:00:07]}  Rc8 {[%clk 0:00:39]} 37. Rg7 {[%clk 0:00:05]}  Be5 {[%clk 0:00:30]} 38. Rf7 {[%clk 0:00:05]}  b5 {[%clk 0:00:26]} 39. Rg1+ {[%clk 0:00:05]}  Kxh4 {[%clk 0:00:16]} 40. Nf3+ {[%clk 0:00:05]}  Kh3 {[%clk 0:00:16]} 41. Nxe5 {[%clk 0:00:06]}  Re8 {[%clk 0:00:14]} 42. Rxf4 {[%clk 0:00:03]}  Rxe5 {[%clk 0:00:14]} 43. Rf2 {[%clk 0:00:03]}  Re2 {[%clk 0:00:09]} 44. Rxe2 {[%clk 0:00:03]}  h4 {[%clk 0:00:08]} 45. Rh2# {[%clk 0:00:04]} 1-0


[Site "https://www.chess.com"]

[Event "Titled Tuesday Blitz July 6 2021"]
[White "Vykouk, Jan"]
[Black "Naroditsky, Daniel"]
[WhiteFideId "349658"]
[BlackFideId "2026961"]
[WhiteElo "2387"]
[BlackElo "2608"]
[Result "1-0"]
[Round "06"]
[TimeControl "180+1"]
[Date "2021.07.06"]
[WhiteClock "0:00:13"]
[BlackClock "0:00:05"]

1. e4 {[%clk 0:03:00]}  c5 {[%clk 0:02:59]} 2. Nf3 {[%clk 0:03:00]}  d6 {[%clk 0:03:00]} 3. d4 {[%clk 0:03:01]}  cxd4 {[%clk 0:03:01]} 4. Nxd4 {[%clk 0:03:01]}  Nf6 {[%clk 0:03:01]} 5. Nc3 {[%clk 0:03:02]}  a6 {[%clk 0:03:02]} 6. Be3 {[%clk 0:03:01]}  e5 {[%clk 0:03:01]} 7. Nb3 {[%clk 0:03:01]}  Be6 {[%clk 0:03:01]} 8. f3 {[%clk 0:03:01]}  Be7 {[%clk 0:03:02]} 9. Qd2 {[%clk 0:03:01]}  O-O {[%clk 0:03:02]} 10. O-O-O {[%clk 0:03:01]}  a5 {[%clk 0:03:03]} 11. a4 {[%clk 0:03:01]}  Nc6 {[%clk 0:03:03]} 12. g4 {[%clk 0:02:56]}  Nb4 {[%clk 0:03:02]} 13. g5 {[%clk 0:02:55]}  Ne8 {[%clk 0:02:57]} 14. Rg1 {[%clk 0:02:50]}  Rc8 {[%clk 0:02:56]} 15. Kb1 {[%clk 0:02:49]}  d5 {[%clk 0:02:48]} 16. exd5 {[%clk 0:02:45]}  Bf5 {[%clk 0:02:49]} 17. Na1 {[%clk 0:02:45]}  Nd6 {[%clk 0:02:46]} 18. h4 {[%clk 0:02:38]}  Qd7 {[%clk 0:02:42]} 19. h5 {[%clk 0:02:23]}  Rxc3 {[%clk 0:01:43]} 20. bxc3 {[%clk 0:02:22]}  Na6 {[%clk 0:00:58]} 21. g6 {[%clk 0:02:22]}  Qxa4 {[%clk 0:00:54]} 22. gxh7+ {[%clk 0:01:48]}  Kh8 {[%clk 0:00:50]} 23. Qg2 {[%clk 0:01:32]}  g6 {[%clk 0:00:42]} 24. hxg6 {[%clk 0:01:26]}  fxg6 {[%clk 0:00:40]} 25. Bg5 {[%clk 0:01:07]}  Bxg5 {[%clk 0:00:15]} 26. Qxg5 {[%clk 0:01:08]}  Nb4 {[%clk 0:00:15]} 27. cxb4 {[%clk 0:01:03]}  Qxb4+ {[%clk 0:00:16]} 28. Kc1 {[%clk 0:01:02]}  Qa3+ {[%clk 0:00:17]} 29. Kd2 {[%clk 0:00:46]}  Qxf3 {[%clk 0:00:17]} 30. Bd3 {[%clk 0:00:42]}  e4 {[%clk 0:00:05]} 31. Rdf1 {[%clk 0:00:38]}  Qh3 {[%clk 0:00:01]} 32. Qe7 {[%clk 0:00:23]}  Qh2+ {[%clk 0:00:02]} 33. Kc1 {[%clk 0:00:18]}  Qh6+ {[%clk 0:00:02]} 34. Kb1 {[%clk 0:00:17]}  exd3 {[%clk 0:00:03]} 35. Qe5+ {[%clk 0:00:16]}  Qg7 {[%clk 0:00:02]} 36. Qxd6 {[%clk 0:00:15]}  dxc2+ {[%clk 0:00:03]} 37. Nxc2 {[%clk 0:00:15]}  Bxc2+ {[%clk 0:00:03]} 38. Kxc2 {[%clk 0:00:15]}  Rc8+ {[%clk 0:00:04]} 39. Kb1 {[%clk 0:00:15]}  Qd4 {[%clk 0:00:02]} 40. Qf6+ {[%clk 0:00:13]}  Qxf6 {[%clk 0:00:02]} 41. Rxf6 {[%clk 0:00:14]}  Kxh7 {[%clk 0:00:03]} 42. Rfxg6 {[%clk 0:00:14]}  Rc7 {[%clk 0:00:04]} 43. R6g2 {[%clk 0:00:13]}  Kh8 {[%clk 0:00:05]} 44. Rh2+ {[%clk 0:00:13]} 1-0


[Site "https://www.chess.com"]